[Event "95th Caplin Hastings Congress"]
[Site "Hastings"]
[Date "2020.01.02"]
[Round "6.55"]
[White "Kearsley, Raymond J"]
[Black "Verma, Shlok"]
[Result "0-1"]
[ECO "C01"]
[WhiteElo "1624"]
[BlackElo "1691"]
[Annotator "NA"]
[PlyCount "104"]
[EventDate "2019.12.28"]
[EventType "swiss"]
[EventCountry "ENG"]
[SourceTitle "playchess.com"]
[Source "ChessBase"]
[SourceQuality "1"]
[TimeControl "40/6600+30:3000+30"]

1. e4 {[%emt 1:22:05]} e6 {[%emt 0:00:51]} 2. d4 {[%emt 0:00:09]} d5 {[%emt 0:00:03]} 3. Bd3 {[%emt 0:00:07]} Nf6 {[%emt 0:00:29]} 4. e5 {[%emt 0:01:02]} Nfd7 {[%emt 0:00:07]} 5. f4 {[%emt 0:00:10]} c5 {[%emt 0:00:07]} 6. c3 {[%emt 0:00:06]} Nc6 {[%emt 0:00:13]} 7. Nf3 {[%emt 0:01:01]} a6 {[%emt 0:00:22]} 8. O-O {[%emt 0:01:09]} g6 {[%emt 0:03:53]} 9. Na3 {[%emt 0:04:34]} b5 {[%emt 0:00:55]} 10. Nc2 {[%emt 0:02:57]} Qb6 {[%emt 0:00:59]} 11. Kh1 {[%emt 0:00:58]} Bb7 {[%emt 0:01:29]} 12. g4 {[%emt 0:00:48]} c4 {[%emt 0:03:56]} 13. Be2 {[%emt 0:00:09]} O-O-O {[%emt 0:01:05]} 14. Ng5 {[%emt 0:03:05]} Re8 {[%emt 0:03:16]} 15. Nxf7 {[%emt 0:03:26]} Rg8 {[%emt 0:00:04]} 16. Ne3 {[%emt 0:03:35]} Nd8 {[%emt 0:06:50]} 17. Nxd8 {[%emt 0:02:50]} Rxd8 {[%emt 0:00:41]} 18. Bf3 {[%emt 0:01:10]} Bh6 {[%emt 0:01:05]} 19. g5 {[%emt 0:05:18]} Bg7 {[%emt 0:01:34]} 20. Qe2 {[%emt 0:01:26]} h5 {[%emt 0:09:05]} 21. Ng2 {[%emt 0:01:40]} Bf8 {[%emt 0:02:30]} 22. Be3 {[%emt 0:00:59]} Be7 {[%emt 0:02:12]} 23. Nh4 {[%emt 0:03:36]} Nf8 {[%emt 0:01:16]} 24. b3 {[%emt 0:01:29]} Ba3 {[%emt 0:02:04]} 25. bxc4 {[%emt 0:00:43]} dxc4 {[%emt 0:00:20]} 26. d5 {[%emt 0:03:12]} Bc5 {[%emt 0:01:08]} 27. Bxc5 {[%emt 0:01:02]} Qxc5 {[%emt 0:00:06]} 28. d6 {[%emt 0:00:11]} Rd7 {[%emt 0:01:59]} 29. Be4 {[%emt 0:01:34]} a5 {[%emt 0:11:29]} 30. Nf3 {[%emt 0:00:25]} Nh7 {[%emt 0:13:46]} 31. a4 {[%emt 0:06:21]} Rf8 {[%emt 0:09:24]} 32. Nd4 {[%emt 0:00:23]} Bd5 {[%emt 0:02:08]} 33. axb5 {[%emt 0:01:00]} Rdf7 {[%emt 0:06:35]} 34. Bxd5 {[%emt 0:13:51]} Qxd5+ {[%emt 0:00:52]} 35. Qg2 {[%emt 0:00:10]} Qxg2+ {[%emt 0:05:09]} 36. Kxg2 {[%emt 0:00:25]} Rxf4 {[%emt 0:00:31]} 37. Nxe6 {[%emt 0:06:06]} Rxf1 {[%emt 0:02:21]} 38. Rxf1 {[%emt 0:00:09]} Rxf1 {[%emt 0:00:11]} 39. Kxf1 {[%emt 0:00:08]} a4 {[%emt 0:00:02]} 40. Nd4 {[%emt 0:00:55]} a3 {[%emt 0:00:12]} 41. Nc2 {[%emt 0:00:12]} a2 {[%emt 0:00:04]} 42. h4 {[%emt 0:02:39]} Nf8 {[%emt 0:00:32]} 43. Ke2 {[%emt 0:00:33]} Nd7 {[%emt 0:15:21]} 44. Ke3 {[%emt 0:01:20]} Nxe5 {[%emt 0:01:10]} 45. Ke4 {[%emt 0:00:09]} Nf7 {[%emt 0:00:44]} 46. Kd5 {[%emt 0:00:34]} Kd7 {[%emt 0:00:49]} 47. b6 {[%emt 0:06:58]} Nxd6 {[%emt 0:01:55]} 48. Ke5 {[%emt 0:00:13]} Nf5 {[%emt 0:07:53]} 49. Kf6 {[%emt 0:09:20]} Nxh4 {[%emt 0:01:34]} 50. Kf7 {[%emt 0:00:10]} Nf3 {[%emt 0:05:32]} 51. Kxg6 {[%emt 0:00:39]} h4 {[%emt 0:00:05]} 52. Kf5 {[%emt 0:00:52]} Nxg5 {[%emt 0:00:40]} 0-1

[Event "95th Caplin Hastings Congress"]
[Site "Hastings"]
[Date "2020.01.02"]
[Round "6.56"]
[White "Sandhu, Manvith"]
[Black "Dewangan, Aayush"]
[Result "1-0"]
[ECO "B53"]
[WhiteElo "1673"]
[BlackElo "1548"]
[Annotator "NA"]
[PlyCount "121"]
[EventDate "2019.12.28"]
[EventType "swiss"]
[EventCountry "ENG"]
[SourceTitle "playchess.com"]
[Source "ChessBase"]
[SourceQuality "1"]
[TimeControl "40/6600+30:3000+30"]

1. e4 {[%emt 1:22:04]} c5 {[%emt 0:00:09]} 2. Nf3 {[%emt 0:00:05]} d6 {[%emt 0:00:07]} 3. d4 {[%emt 0:00:04]} cxd4 {[%emt 0:00:08]} 4. Qxd4 {[%emt 0:00:06]} Nc6 {[%emt 0:01:55]} 5. Bb5 {[%emt 0:00:07]} Nf6 {[%emt 0:02:57]} 6. Nc3 {[%emt 0:00:09]} Bd7 {[%emt 0:01:05]} 7. Bxc6 {[%emt 0:00:12]} Bxc6 {[%emt 0:00:13]} 8. Bg5 {[%emt 0:00:20]} e5 {[%emt 0:01:04]} 9. Qd3 {[%emt 0:00:14]} Be7 {[%emt 0:00:22]} 10. O-O-O {[%emt 0:07:51]} Ng4 {[%emt 0:03:40]} 11. Bxe7 {[%emt 0:04:08]} Qxe7 {[%emt 0:00:08]} 12. Qd2 {[%emt 0:04:01]} Rd8 {[%emt 0:00:56]} 13. h3 {[%emt 0:01:02]} Nf6 {[%emt 0:00:09]} 14. Rhe1 {[%emt 0:00:44]} O-O {[%emt 0:00:30]} 15. Kb1 {[%emt 0:00:00]} b5 {[%emt 0:02:09]} 16. g4 {[%emt 0:02:51]} Qb7 {[%emt 0:04:08]} 17. Nd5 {[%emt 0:15:35]} Bxd5 {[%emt 0:01:57]} 18. exd5 {[%emt 0:00:10]} Rc8 {[%emt 0:04:00]} 19. Ng5 {[%emt 0:07:18]} Rc4 {[%emt 0:01:46]} 20. f3 {[%emt 0:24:00]} Rd4 {[%emt 0:01:51]} 21. Qe2 {[%emt 0:03:45]} Rxd5 {[%emt 0:03:17]} 22. Rxd5 {[%emt 0:00:51]} Nxd5 {[%emt 0:00:36]} 23. Qe4 {[%emt 0:02:15]} g6 {[%emt 0:03:13]} 24. Rd1 {[%emt 0:00:21]} h6 {[%emt 0:00:10]} 25. Nxf7 {[%emt 0:03:55]} Rxf7 {[%emt 0:00:44]} 26. Rxd5 {[%emt 0:12:07]} Kg7 {[%emt 0:00:32]} 27. Qd3 {[%emt 0:02:03]} Qb6 {[%emt 0:01:29]} 28. b3 {[%emt 0:01:42]} Rf6 {[%emt 0:02:28]} 29. Rxb5 {[%emt 0:01:27]} Qc6 {[%emt 0:02:46]} 30. Rd5 {[%emt 0:00:41]} h5 {[%emt 0:02:57]} 31. g5 {[%emt 0:03:03]} Re6 {[%emt 0:00:06]} 32. Qe4 {[%emt 0:00:53]} Qb6 {[%emt 0:00:53]} 33. h4 {[%emt 0:00:46]} Qc7 {[%emt 0:02:35]} 34. Kb2 {[%emt 0:00:22]} Re8 {[%emt 0:00:45]} 35. f4 {[%emt 0:01:33]} Re7 {[%emt 0:03:00]} 36. f5 {[%emt 0:01:00]} Rf7 {[%emt 0:00:07]} 37. f6+ {[%emt 0:00:34]} Kh7 {[%emt 0:00:15]} 38. Qd3 {[%emt 0:00:39]} Rd7 {[%emt 0:00:18]} 39. Qe4 {[%emt 0:00:29]} Rf7 {[%emt 0:00:24]} 40. a3 {[%emt 0:00:15]} Rd7 {[%emt 0:00:47]} 41. Qd3 {[%emt 0:02:39]} Qb8 {[%emt 0:01:32]} 42. Rxe5 {[%emt 0:02:56]} Qc7 {[%emt 0:03:54]} 43. Re6 {[%emt 0:02:37]} Qc5 {[%emt 0:00:33]} 44. Qe4 {[%emt 0:02:20]} d5 {[%emt 0:02:33]} 45. Qe5 {[%emt 0:02:57]} Qf8 {[%emt 0:00:43]} 46. Re7+ {[%emt 0:00:19]} Rxe7 {[%emt 0:00:17]} 47. Qxe7+ {[%emt 0:00:07]} Kg8 {[%emt 0:00:05]} 48. Qxf8+ {[%emt 0:00:08]} Kxf8 {[%emt 0:00:07]} 49. Kc3 {[%emt 0:00:13]} Kf7 {[%emt 0:00:05]} 50. Kd4 {[%emt 0:00:10]} Ke6 {[%emt 0:00:06]} 51. c4 {[%emt 0:00:09]} dxc4 {[%emt 0:00:07]} 52. bxc4 {[%emt 0:00:05]} a6 {[%emt 0:00:06]} 53. c5 {[%emt 0:00:05]} a5 {[%emt 0:00:03]} 54. c6 {[%emt 0:00:09]} a4 {[%emt 0:00:06]} 55. c7 {[%emt 0:00:08]} Kd7 {[%emt 0:00:03]} 56. f7 {[%emt 0:00:05]} Ke7 {[%emt 0:00:06]} 57. c8=Q {[%emt 0:00:11]} Kxf7 {[%emt 0:00:07]} 58. Qd7+ {[%emt 0:00:10]} Kf8 {[%emt 0:00:08]} 59. Ke5 {[%emt 0:00:07]} Kg8 {[%emt 0:00:06]} 60. Kf6 {[%emt 0:00:06]} Kh8 {[%emt 0:00:08]} 61. Qg7# {[%emt 0:00:05]} 1-0

[Event "95th Caplin Hastings Congress"]
[Site "Hastings"]
[Date "2020.01.02"]
[Round "6.57"]
[White "Bryant, Marc A"]
[Black "Lakshmi Raja Perumal K"]
[Result "1-0"]
[ECO "C52"]
[WhiteElo "1823"]
[BlackElo "1492"]
[Annotator "NA"]
[PlyCount "94"]
[EventDate "2019.12.28"]
[EventType "swiss"]
[EventCountry "ENG"]
[SourceTitle "playchess.com"]
[Source "ChessBase"]
[SourceQuality "1"]
[TimeControl "40/6600+30:3000+30"]

1. e4 {[%emt 0:14:46]} e5 {[%emt 0:09:39]} 2. Nf3 {[%emt 0:00:04]} Nc6 {[%emt 0:00:06]} 3. Bc4 {[%emt 0:00:02]} Bc5 {[%emt 0:00:42]} 4. b4 {[%emt 0:00:17]} Bxb4 {[%emt 0:00:18]} 5. c3 {[%emt 0:00:15]} Ba5 {[%emt 0:06:42]} 6. Qb3 {[%emt 0:02:40]} Bb6 {[%emt 0:08:47]} 7. Bxf7+ {[%emt 0:03:05]} Kf8 {[%emt 0:00:09]} 8. d3 {[%emt 0:09:25]} Qe7 {[%emt 0:07:23]} 9. Bxg8 {[%emt 0:01:22]} Rxg8 {[%emt 0:00:13]} 10. Bg5 {[%emt 0:00:42]} Qf7 {[%emt 0:00:47]} 11. Nbd2 {[%emt 0:00:35]} d6 {[%emt 0:06:27]} 12. Qxf7+ {[%emt 0:01:15]} Kxf7 {[%emt 0:00:12]} 13. Be3 {[%emt 0:00:59]} Re8 {[%emt 0:09:20]} 14. Bxb6 {[%emt 0:00:56]} axb6 {[%emt 0:00:12]} 15. O-O {[%emt 0:00:34]} Ra3 {[%emt 0:05:29]} 16. Nb3 {[%emt 0:01:29]} h6 {[%emt 0:02:19]} 17. Nfd2 {[%emt 0:00:37]} Na5 {[%emt 0:10:11]} 18. f4 {[%emt 0:01:27]} Kg8 {[%emt 0:00:59]} 19. f5 {[%emt 0:00:22]} c5 {[%emt 0:03:14]} 20. Nxa5 {[%emt 0:01:01]} bxa5 {[%emt 0:02:42]} 21. Rfc1 {[%emt 0:00:45]} b5 {[%emt 0:01:18]} 22. Nb1 {[%emt 0:01:02]} Ra4 {[%emt 0:01:20]} 23. Nd2 {[%emt 0:01:05]} d5 {[%emt 0:09:39]} 24. Nb3 {[%emt 0:01:36]} c4 {[%emt 0:04:10]} 25. Nc5 {[%emt 0:00:36]} Ra3 {[%emt 0:02:55]} 26. dxc4 {[%emt 0:03:29]} bxc4 {[%emt 0:02:38]} 27. g4 {[%emt 0:02:58]} d4 {[%emt 0:06:52]} 28. cxd4 {[%emt 0:01:29]} exd4 {[%emt 0:01:48]} 29. Rxc4 {[%emt 0:00:12]} d3 {[%emt 0:00:20]} 30. Rd4 {[%emt 0:00:29]} Kh7 {[%emt 0:04:52]} 31. Nxd3 {[%emt 0:00:09]} Rxd3 {[%emt 0:00:10]} 32. Rxd3 {[%emt 0:00:08]} Rxe4 {[%emt 0:00:30]} 33. h3 {[%emt 0:00:16]} h5 {[%emt 0:00:14]} 34. Rg3 {[%emt 0:00:51]} hxg4 {[%emt 0:01:41]} 35. hxg4 {[%emt 0:00:04]} Bb7 {[%emt 0:01:48]} 36. Rb1 {[%emt 0:00:11]} Bd5 {[%emt 0:00:26]} 37. Rb8 {[%emt 0:00:05]} g5 {[%emt 0:01:25]} 38. a3 {[%emt 0:00:22]} a4 {[%emt 0:00:15]} 39. Rb4 {[%emt 0:00:18]} Rxb4 {[%emt 0:00:24]} 40. axb4 {[%emt 0:00:09]} Kg7 {[%emt 0:00:54]} 41. Kf2 {[%emt 0:50:25]} Kf6 {[%emt 0:50:31]} 42. Re3 {[%emt 0:00:12]} Bc4 {[%emt 0:01:48]} 43. Kg3 {[%emt 0:00:16]} Bd5 {[%emt 0:00:06]} 44. b5 {[%emt 0:00:11]} Kg7 {[%emt 0:00:43]} 45. b6 {[%emt 0:00:14]} Kf6 {[%emt 0:00:06]} 46. Ra3 {[%emt 0:00:10]} Bc6 {[%emt 0:00:04]} 47. Rxa4 {[%emt 0:00:14]} Bxa4 {[%emt 0:00:05]} 1-0

[Event "95th Caplin Hastings Congress"]
[Site "Hastings"]
[Date "2020.01.02"]
[Round "6.58"]
[White "Cresswell, Mike J"]
[Black "Liu, Tianyi"]
[Result "1/2-1/2"]
[ECO "B48"]
[WhiteElo "1662"]
[BlackElo "1307"]
[Annotator "NA"]
[PlyCount "100"]
[EventDate "2019.12.28"]
[EventType "swiss"]
[EventCountry "ENG"]
[SourceTitle "playchess.com"]
[Source "ChessBase"]
[SourceQuality "1"]
[TimeControl "40/6600+30:3000+30"]

1. e4 {[%emt 0:09:43]} c5 {[%emt 0:11:31]} 2. Nf3 {[%emt 0:00:02]} e6 {[%emt 0:02:35]} 3. d4 {[%emt 0:00:49]} cxd4 {[%emt 0:01:22]} 4. Nxd4 {[%emt 0:00:43]} Nc6 {[%emt 0:01:19]} 5. a3 {[%emt 0:04:15]} Nf6 {[%emt 0:06:05]} 6. Nc3 {[%emt 0:01:15]} a6 {[%emt 0:10:10]} 7. Be3 {[%emt 0:04:16]} Qc7 {[%emt 0:02:37]} 8. Be2 {[%emt 0:05:27]} Be7 {[%emt 0:05:15]} 9. O-O {[%emt 0:04:30]} O-O {[%emt 0:01:45]} 10. f4 {[%emt 0:02:07]} d6 {[%emt 0:10:10]} 11. Kh1 {[%emt 0:05:22]} h6 {[%emt 0:13:09]} 12. Bf3 {[%emt 0:02:01]} Rd8 {[%emt 0:05:54]} 13. Nce2 {[%emt 0:04:25]} e5 {[%emt 0:03:44]} 14. Nxc6 {[%emt 0:11:58]} Qxc6 {[%emt 0:02:04]} 15. Ng3 {[%emt 0:16:21]} Bd7 {[%emt 0:08:39]} 16. fxe5 {[%emt 0:04:04]} dxe5 {[%emt 0:01:30]} 17. Qe2 {[%emt 0:00:39]} Rac8 {[%emt 0:03:19]} 18. Rac1 {[%emt 0:00:33]} Be6 {[%emt 0:01:36]} 19. Rfd1 {[%emt 0:02:43]} Rxd1+ {[%emt 0:04:11]} 20. Qxd1 {[%emt 0:00:13]} Qb5 {[%emt 0:03:52]} 21. Rb1 {[%emt 0:04:19]} Rd8 {[%emt 0:09:53]} 22. Qe1 {[%emt 0:05:41]} Qc6 {[%emt 0:04:10]} 23. Rc1 {[%emt 0:02:51]} Bc5 {[%emt 0:00:51]} 24. Qg1 {[%emt 0:01:39]} Be7 {[%emt 0:03:43]} 25. Qe1 {[%emt 0:02:45]} Ng4 {[%emt 0:01:11]} 26. Nf5 {[%emt 0:02:28]} Bxf5 {[%emt 0:01:05]} 27. exf5 {[%emt 0:00:16]} Qc4 {[%emt 0:00:19]} 28. b3 {[%emt 0:02:12]} Qc7 {[%emt 0:00:53]} 29. Bxg4 {[%emt 0:00:36]} Bxa3 {[%emt 0:00:09]} 30. Rd1 {[%emt 0:02:08]} Re8 {[%emt 0:00:47]} 31. Bc1 {[%emt 0:01:53]} Bc5 {[%emt 0:00:42]} 32. f6 {[%emt 0:00:56]} gxf6 {[%emt 0:00:35]} 33. Bxh6 {[%emt 0:00:44]} Bf8 {[%emt 0:00:20]} 34. Bxf8 {[%emt 0:01:00]} Kxf8 {[%emt 0:00:27]} 35. Qd2 {[%emt 0:00:42]} Kg8 {[%emt 0:00:26]} 36. Bf5 {[%emt 0:03:18]} Kg7 {[%emt 0:00:30]} 37. Qf2 {[%emt 0:01:34]} Rd8 {[%emt 0:00:24]} 38. Qg3+ {[%emt 0:02:49]} Kf8 {[%emt 0:00:15]} 39. Rxd8+ {[%emt 0:00:49]} Qxd8 {[%emt 0:00:10]} 40. Qd3 {[%emt 0:00:47]} Qa5 {[%emt 0:00:23]} 41. h4 {[%emt 0:50:41]} Qe1+ {[%emt 0:50:48]} 42. Kh2 {[%emt 0:00:05]} Qxh4+ {[%emt 0:00:09]} 43. Kg1 {[%emt 0:02:10]} Qe1+ {[%emt 0:00:33]} 44. Qf1 {[%emt 0:00:37]} Qe3+ {[%emt 0:00:08]} 45. Qf2 {[%emt 0:01:05]} Qc1+ {[%emt 0:00:15]} 46. Kh2 {[%emt 0:00:31]} Qh6+ {[%emt 0:00:23]} 47. Bh3 {[%emt 0:00:31]} Qg5 {[%emt 0:00:00]} 48. Qf5 {[%emt 0:00:00]} Qd2 {[%emt 0:00:00]} 49. Qc8+ {[%emt 0:00:00]} Kg7 {[%emt 0:00:00]} 50. Qc4 {[%emt 0:00:00]} Qd6 {[%emt 0:00:00]} 1/2-1/2

[Event "95th Caplin Hastings Congress"]
[Site "Hastings"]
[Date "2020.01.02"]
[Round "6.59"]
[White "Stoyanov, Boris"]
[Black "Zheng, Harry Z"]
[Result "0-1"]
[ECO "C47"]
[WhiteElo "1504"]
[BlackElo "1705"]
[Annotator "NA"]
[PlyCount "110"]
[EventDate "2019.12.28"]
[EventType "swiss"]
[EventCountry "ENG"]
[SourceTitle "playchess.com"]
[Source "ChessBase"]
[SourceQuality "1"]
[TimeControl "40/6600+30:3000+30"]

1. e4 {[%emt 0:11:09]} e5 {[%emt 0:09:35]} 2. Nf3 {[%emt 0:00:25]} Nc6 {[%emt 0:00:07]} 3. Nc3 {[%emt 0:00:07]} Nf6 {[%emt 0:00:08]} 4. Be2 {[%emt 0:00:12]} d5 {[%emt 0:01:44]} 5. exd5 {[%emt 0:10:36]} Nxd5 {[%emt 0:00:16]} 6. O-O {[%emt 0:00:35]} Nxc3 {[%emt 0:03:10]} 7. dxc3 {[%emt 0:01:19]} Qxd1 {[%emt 0:00:27]} 8. Rxd1 {[%emt 0:00:33]} f6 {[%emt 0:01:17]} 9. Be3 {[%emt 0:06:13]} Be6 {[%emt 0:01:30]} 10. a3 {[%emt 0:03:57]} Be7 {[%emt 0:04:56]} 11. Nd2 {[%emt 0:13:53]} O-O-O {[%emt 0:07:07]} 12. b4 {[%emt 0:04:51]} f5 {[%emt 0:12:45]} 13. Nb3 {[%emt 0:03:16]} f4 {[%emt 0:15:45]} 14. Bc5 {[%emt 0:05:14]} Bf6 {[%emt 0:09:22]} 15. b5 {[%emt 0:18:21]} Ne7 {[%emt 0:03:15]} 16. Bxe7 {[%emt 0:16:44]} Bxe7 {[%emt 0:00:10]} 17. Bf3 {[%emt 0:01:37]} Bxb3 {[%emt 0:14:04]} 18. cxb3 {[%emt 0:00:38]} Rxd1+ {[%emt 0:08:56]} 19. Rxd1 {[%emt 0:02:20]} Bxa3 {[%emt 0:09:03]} 20. b4 {[%emt 0:02:58]} Bb2 {[%emt 0:00:54]} 21. Rd3 {[%emt 0:03:48]} a6 {[%emt 0:08:08]} 22. bxa6 {[%emt 0:01:59]} bxa6 {[%emt 0:00:08]} 23. Kf1 {[%emt 0:00:32]} c5 {[%emt 0:01:26]} 24. bxc5 {[%emt 0:00:59]} a5 {[%emt 0:01:43]} 25. Bc6 {[%emt 0:04:44]} Rd8 {[%emt 0:03:23]} 26. Rxd8+ {[%emt 0:00:36]} Kxd8 {[%emt 0:00:05]} 27. c4 {[%emt 0:01:39]} Bd4 {[%emt 0:00:08]} 28. Be4 {[%emt 0:00:13]} h6 {[%emt 0:00:12]} 29. c6 {[%emt 0:01:04]} a4 {[%emt 0:00:05]} 30. Bd5 {[%emt 0:01:21]} a3 {[%emt 0:00:07]} 31. c5 {[%emt 0:00:03]} Bxc5 {[%emt 0:00:04]} 32. Ke2 {[%emt 0:00:12]} Kc7 {[%emt 0:00:59]} 33. f3 {[%emt 0:00:26]} Kd6 {[%emt 0:00:08]} 34. Ba2 {[%emt 0:00:05]} Kxc6 {[%emt 0:00:06]} 35. Kd3 {[%emt 0:00:23]} Be7 {[%emt 0:00:54]} 36. Kc4 {[%emt 0:00:46]} Kb6 {[%emt 0:02:06]} 37. Bb3 {[%emt 0:02:11]} Kc6 {[%emt 0:01:38]} 38. Ba4+ {[%emt 0:00:35]} Kd6 {[%emt 0:00:14]} 39. Bb3 {[%emt 0:00:13]} Ke6 {[%emt 0:00:11]} 40. Kd3+ {[%emt 0:01:09]} Kf5 {[%emt 0:00:10]} 41. Kc4 {[%emt 0:50:37]} e4 {[%emt 0:51:59]} 42. Kd4 {[%emt 0:00:00]} e3 {[%emt 0:00:00]} 43. Kd3 {[%emt 0:00:00]} Ke5 {[%emt 0:00:00]} 44. Ba2 {[%emt 0:00:00]} h5 {[%emt 0:00:00]} 45. Bb3 {[%emt 0:00:00]} g5 {[%emt 0:00:00]} 46. h3 {[%emt 0:00:00]} Kf5 {[%emt 0:00:00]} 47. Ke2 {[%emt 0:00:00]} g4 {[%emt 0:00:00]} 48. Bc4 {[%emt 0:00:00]} gxh3 {[%emt 0:00:00]} 49. gxh3 {[%emt 0:00:00]} Kg5 {[%emt 0:00:00]} 50. Kf1 {[%emt 0:00:00]} Kh4 {[%emt 0:00:00]} 51. Kg2 {[%emt 0:00:00]} Bc5 {[%emt 0:00:00]} 52. Kf1 {[%emt 0:00:00]} Kg3 {[%emt 0:00:00]} 53. Ke2 {[%emt 0:00:00]} Kxh3 {[%emt 0:00:00]} 54. Bd5 {[%emt 0:00:00]} Kg3 {[%emt 0:00:00]} 55. Kf1 {[%emt 0:00:00]} h4 {[%emt 0:00:00]} 0-1

[Event "95th Caplin Hastings Congress"]
[Site "Hastings"]
[Date "2020.01.03"]
[Round "7.1"]
[White "Bagi, Mate"]
[Black "Panchanathan, Magesh Chandran"]
[Result "1/2-1/2"]
[ECO "C77"]
[WhiteElo "2466"]
[BlackElo "2482"]
[Annotator "ChessBase"]
[PlyCount "31"]
[EventDate "2019.12.28"]
[EventType "swiss"]
[EventCountry "ENG"]
[SourceTitle "playchess.com"]
[Source "ChessBase"]
[SourceQuality "1"]
[TimeControl "40/6600+30:3000+30"]

1. e4 {[%emt 0:09:34]} e5 {[%emt 0:15:03]} 2. Nf3 {[%emt 0:00:11]} Nc6 {[%emt 0:00:21]} 3. Bb5 {[%emt 0:00:35]} a6 {[%emt 0:00:06]} 4. Ba4 {[%emt 0:00:07]} Nf6 {[%emt 0:00:06]} 5. Nc3 {[%emt 0:05:02]} Bd6 {[%emt 0:01:39]} 6. d3 {[%emt 0:05:31]} h6 {[%emt 0:00:19]} 7. a3 {[%emt 0:05:35]} b5 {[%emt 0:08:08]} 8. Bb3 {[%emt 0:00:08]} Bc5 {[%emt 0:00:15]} 9. Nd5 {[%emt 0:09:24]} d6 {[%emt 0:02:16]} 10. c3 {[%emt 0:03:40]} Ba7 {[%emt 0:02:20]} 11. O-O {[%emt 0:13:09]} O-O {[%emt 0:00:15]} 12. Be3 {[%emt 0:08:26]} Be6 {[%emt 0:09:23]} 13. a4 {[%emt 0:08:50]} Nd7 {[%emt 0:22:21]} 14. axb5 {[%emt 0:07:18]} axb5 {[%emt 0:01:09]} 15. Bxa7 {[%emt 0:06:28]} Rxa7 {[%emt 0:01:38]} 16. Rxa7 {[%emt 0:00:50]} 1/2-1/2

[Event "95th Caplin Hastings Congress"]
[Site "Hastings"]
[Date "2020.01.03"]
[Round "7.3"]
[White "Petrov, Martin"]
[Black "Hebden, Mark L"]
[Result "1/2-1/2"]
[ECO "C55"]
[WhiteElo "2504"]
[BlackElo "2434"]
[Annotator "ChessBase"]
[PlyCount "104"]
[EventDate "2019.12.28"]
[EventType "swiss"]
[EventCountry "ENG"]
[SourceTitle "playchess.com"]
[Source "ChessBase"]
[SourceQuality "1"]
[TimeControl "40/6600+30:3000+30"]

1. e4 {[%emt 0:11:15]} e5 {[%emt 0:09:42]} 2. Nf3 {[%emt 0:00:25]} Nc6 {[%emt 0:00:11]} 3. Bc4 {[%emt 0:00:13]} Nf6 {[%emt 0:00:12]} 4. d3 {[%emt 0:00:07]} Be7 {[%emt 0:00:51]} 5. O-O {[%emt 0:00:08]} O-O {[%emt 0:00:12]} 6. Re1 {[%emt 0:00:08]} d6 {[%emt 0:00:20]} 7. a3 {[%emt 0:00:04]} Be6 {[%emt 0:08:18]} 8. Nbd2 {[%emt 0:00:56]} Nd7 {[%emt 0:06:25]} 9. b4 {[%emt 0:02:48]} Nb6 {[%emt 0:01:30]} 10. Bxe6 {[%emt 0:00:36]} fxe6 {[%emt 0:00:05]} 11. b5 {[%emt 0:08:56]} Nd4 {[%emt 0:02:58]} 12. Nxd4 {[%emt 0:00:42]} exd4 {[%emt 0:00:06]} 13. Nf3 {[%emt 0:00:06]} e5 {[%emt 0:10:07]} 14. c3 {[%emt 0:05:24]} dxc3 {[%emt 0:00:43]} 15. Qb3+ {[%emt 0:05:33]} Kh8 {[%emt 0:00:41]} 16. a4 {[%emt 0:11:23]} c5 {[%emt 0:08:56]} 17. bxc6 {[%emt 0:00:39]} bxc6 {[%emt 0:00:16]} 18. Qxc3 {[%emt 0:01:33]} c5 {[%emt 0:06:50]} 19. Be3 {[%emt 0:05:51]} Rb8 {[%emt 0:01:04]} 20. Nd2 {[%emt 0:07:40]} Bg5 {[%emt 0:00:51]} 21. a5 {[%emt 0:08:42]} Bxe3 {[%emt 0:00:38]} 22. fxe3 {[%emt 0:03:34]} Na8 {[%emt 0:00:08]} 23. Rf1 {[%emt 0:03:22]} Nc7 {[%emt 0:05:22]} 24. Rxf8+ {[%emt 0:02:16]} Qxf8 {[%emt 0:00:08]} 25. Rf1 {[%emt 0:01:09]} Qd8 {[%emt 0:04:10]} 26. Nc4 {[%emt 0:01:15]} Qe7 {[%emt 0:00:50]} 27. h3 {[%emt 0:11:54]} h6 {[%emt 0:01:21]} 28. Kh2 {[%emt 0:01:14]} Na6 {[%emt 0:04:14]} 29. d4 {[%emt 0:06:46]} exd4 {[%emt 0:09:10]} 30. exd4 {[%emt 0:00:05]} Qxe4 {[%emt 0:01:10]} 31. dxc5 {[%emt 0:00:30]} dxc5 {[%emt 0:00:56]} 32. Rf7 {[%emt 0:00:18]} Qd4 {[%emt 0:00:29]} 33. Qxd4 {[%emt 0:13:28]} cxd4 {[%emt 0:00:06]} 34. Rxa7 {[%emt 0:00:03]} Nc5 {[%emt 0:03:14]} 35. Rc7 {[%emt 0:01:18]} Na6 {[%emt 0:04:52]} 36. Rc6 {[%emt 0:02:32]} Ra8 {[%emt 0:00:40]} 37. Kg3 {[%emt 0:01:25]} Nb4 {[%emt 0:01:44]} 38. Rb6 {[%emt 0:00:05]} Nd5 {[%emt 0:00:46]} 39. Rd6 {[%emt 0:00:48]} Rc8 {[%emt 0:05:22]} 40. Nb6 {[%emt 0:04:14]} Rc3+ {[%emt 0:00:39]} 41. Kf2 {[%emt 0:12:11]} Nxb6 {[%emt 0:03:17]} 42. axb6 {[%emt 0:01:46]} Rb3 {[%emt 0:00:08]} 43. Ke2 {[%emt 0:06:55]} h5 {[%emt 0:02:17]} 44. Kd2 {[%emt 0:01:37]} d3 {[%emt 0:00:48]} 45. Ke3 {[%emt 0:01:10]} Kg8 {[%emt 0:04:41]} 46. Kd4 {[%emt 0:04:52]} Kf7 {[%emt 0:00:11]} 47. Kc4 {[%emt 0:00:36]} Rb1 {[%emt 0:00:18]} 48. Kc5 {[%emt 0:06:24]} Rb3 {[%emt 0:00:22]} 49. Kc6 {[%emt 0:03:41]} Ke7 {[%emt 0:00:33]} 50. Rd4 {[%emt 0:00:57]} Rc3+ {[%emt 0:00:24]} 51. Kd5 {[%emt 0:00:44]} Rb3 {[%emt 0:03:08]} 52. Kc6 {[%emt 0:01:30]} Rc3+ {[%emt 0:00:35]} 1/2-1/2